fUSD/lending_fUSD_20240831
["ID","MTS","AMOUNT","RATE_DAILY","PERIOD"]
[336743487,1725096116771,-500.0,0.0004,120]
[336743488,1725096116822,-923.73,0.0004,120]
[336743489,1725096116871,-500.0,0.0004,120]
[336743490,1725096116919,-1446.32,0.0004,120]
[336743491,1725096116966,-500.0,0.0004,120]
[336743492,1725096117013,-1350.52,0.0004,120]
[336743493,1725096117061,-500.0,0.0004,120]
[336743494,1725096117113,-1170.8,0.0004,120]
[336743495,1725096117167,-618.91,0.0004,120]
[336743496,1725096117221,-500.0,0.0004,120]
[336743497,1725096117272,-500.0,0.0004,120]
[336743498,1725096117324,-3324.83,0.0004,120]
[336743499,1725096117376,-1273.21,0.0004,120]
[336743500,1725096117426,-500.0,0.0004,120]
[336743501,1725096117476,-2000.0,0.0004,120]
[336743502,1725096117527,-500.0,0.0004,120]
[336743503,1725096117579,-1114.0,0.0004,120]
[336743504,1725096117632,-1256.51,0.0004,120]
[336743505,1725096117684,-1913.46,0.0004,120]
[336743506,1725096117735,-500.0,0.0004,120]
[336743507,1725096117788,-1221.34,0.0004,120]
[336743508,1725096117837,-500.0,0.0004,120]
[336743509,1725096117886,-500.0,0.0004,120]
[336743510,1725096117938,-500.0,0.0004,120]
[336743511,1725096117984,-500.0,0.0004,120]
[336743512,1725096118034,-1287.93,0.0004,120]
[336743513,1725096118085,-500.0,0.0004,120]
[336743514,1725096118137,-500.0,0.0004,120]
[336743515,1725096118187,-925.06,0.0004,120]
[336743516,1725096118237,-500.0,0.0004,120]
[336743517,1725096118287,-500.0,0.0004,120]
[336743518,1725096118336,-500.0,0.0004,120]
[336743519,1725096118384,-500.0,0.0004,120]
[336743520,1725096118435,-500.0,0.0004,120]
[336743521,1725096118483,-548.88,0.0004,120]
[336743522,1725096118531,-775.46,0.0004,120]
[336743523,1725096118582,-1018.59,0.0004,120]
[336743524,1725096118633,-540.19,0.0004,120]
[336743525,1725096118683,-1162.77,0.0004,120]
[336743526,1725096118732,-500.0,0.0004,120]
[336743527,1725096118781,-500.0,0.0004,120]
[336743528,1725096118829,-500.0,0.0004,120]
[336743529,1725096118877,-2066.04,0.0004,120]
[336743530,1725096118926,-500.0,0.0004,120]
[336743531,1725096118972,-500.0,0.0004,120]
[336743532,1725096119023,-500.0,0.0004,120]
[336743533,1725096119073,-500.0,0.0004,120]
[336743534,1725096119123,-500.0,0.0004,120]
[336743535,1725096119172,-721.89,0.0004,120]
[336743536,1725096119222,-500.0,0.0004,120]
[336743537,1725096119270,-500.0,0.0004,120]
[336743538,1725096119316,-666.61,0.0004,120]
[336743539,1725096119363,-1547.45,0.0004,120]
[336743540,1725096119408,-521.78889231,0.0004,120]
[336743541,1725096119455,-598.25,0.0004,120]
[336743542,1725096119502,-558.12,0.0004,120]
[336743543,1725096119553,-643.08,0.0004,120]
[336743544,1725096119604,-585.19,0.0004,120]
[336743545,1725096119660,-2179.7,0.0004,120]
[336743546,1725096119713,-777.19,0.0004,120]
[336743547,1725096119765,-161.58943205,0.0004,120]
[336743548,1725096119815,-156.8736422,0.0004,120]
[336743549,1725096119867,-2274.45,0.0004,120]
[336743550,1725096119918,-500.0,0.0004,120]
[336743551,1725096119970,-635.42,0.0004,120]
[336743552,1725096120020,-500.0,0.0004,120]
[336743553,1725096120072,-868.12,0.0004,120]
[336743554,1725096120123,-500.0,0.0004,120]
[336743555,1725096120174,-500.0,0.0004,120]
[336743556,1725096120224,-1151.6,0.0004,120]
[336743557,1725096120275,-562.37,0.0004,120]
[336743558,1725096120326,-1582.23,0.0004,120]
[336743559,1725096120376,-867.17,0.0004,120]
[336743560,1725096120427,-1256.91,0.0004,120]
[336743561,1725096120477,-500.0,0.0004,120]
[336743562,1725096120525,-500.0,0.0004,120]
[336743563,1725096120575,-500.0,0.0004,120]
[336743564,1725096120627,-500.0,0.0004,120]
[336743565,1725096120675,-735.6,0.0004,120]
[336743566,1725096120725,-2186.79,0.0004,120]
[336743567,1725096120774,-680.15,0.0004,120]
[336743568,1725096120823,-4740.51,0.0004,120]
[336743569,1725096120869,-500.0,0.0004,120]
[336743570,1725096120916,-601.44,0.0004,120]
[336743571,1725096120962,-786.8,0.0004,120]
[336743572,1725096121008,-12860.68,0.0004,120]
[336743573,1725096121054,-834.67,0.0004,120]
[336743574,1725096121099,-500.0,0.0004,120]
[336743575,1725096121145,-500.0,0.0004,120]
[336743576,1725096121364,-500.0,0.0004,120]
[336743577,1725096121415,-500.0,0.0004,120]
[336743578,1725096121469,-954.8,0.0004,120]
[336743579,1725096121521,-961.43,0.0004,120]
[336743580,1725096121577,-997.06,0.0004,120]
[336743581,1725096121633,-414.39,0.0004,120]
[336743582,1725096121686,-500.0,0.0004,120]
[336743583,1725096121739,-507.58,0.0004,120]
[336743584,1725096121793,-500.0,0.0004,120]
[336743585,1725096121845,-996.39,0.0004,120]
[336743586,1725096121897,-500.0,0.0004,120]
[336743587,1725096121949,-500.0,0.0004,120]
[336743588,1725096122003,-169.91779736,0.0004,120]
[336743589,1725096122056,-500.0,0.0004,120]
[336743590,1725096122109,-500.0,0.0004,120]
[336743591,1725096122164,-615.17,0.0004,120]
[336743592,1725096122216,-510.32,0.0004,120]
[336743593,1725096122270,-4187.61,0.0004,120]
[336743594,1725096122322,-941.17,0.0004,120]
[336743595,1725096122374,-10782.5,0.0004,120]
[336743596,1725096122426,-500.0,0.0004,120]
[336743597,1725096122476,-500.0,0.0004,120]
[336743598,1725096122526,-591.64,0.0004,120]
[336743599,1725096122578,-500.0,0.0004,120]
[336743600,1725096122634,-500.0,0.0004,120]
[336743601,1725096122684,-500.0,0.0004,120]
[336743602,1725096122735,-519.14,0.0004,120]
[336743603,1725096122789,-675.23,0.0004,120]
[336743604,1725096122840,-653.02,0.0004,120]
[336743605,1725096122889,-500.0,0.0004,120]
[336743606,1725096122937,-500.0,0.0004,120]
[336743607,1725096122988,-500.0,0.0004,120]
[336743608,1725096123061,-1228.8,0.0004,120]
[336743609,1725096123113,-557.32,0.0004,120]
[336743610,1725096123165,-1015.85,0.0004,120]
[336743611,1725096123214,-282.47406518,0.0004,120]
[336743612,1725096123264,-1823.12,0.0004,120]
[336743613,1725096123313,-2186.95,0.0004,120]
[336743614,1725096123363,-652.33,0.0004,120]
[336743615,1725096123413,-702.23,0.0004,120]
[336743616,1725096123464,-500.0,0.0004,120]
[336743617,1725096123516,-2082.61,0.0004,120]
[336743618,1725096123570,-500.0,0.0004,120]
[336743619,1725096123627,-500.0,0.0004,120]
[336743620,1725096123680,-500.0,0.0004,120]
[336743621,1725096123735,-694.0,0.0004,120]
[336743622,1725096123791,-624.24420828,0.0004,120]
[336743623,1725096123845,-997.15,0.0004,120]
[336743624,1725096123900,-604.52,0.0004,120]
[336743625,1725096123957,-501.24,0.0004,120]
[336743626,1725096124012,-500.0,0.0004,120]
[336743627,1725096124066,-831.62,0.0004,120]
[336743628,1725096124119,-835.51,0.0004,120]
[336743629,1725096124170,-762.21,0.0004,120]
[336743630,1725096124221,-6300.15,0.0004,120]
[336743631,1725096124274,-887.91,0.0004,120]
[336743632,1725096124325,-306.93625812,0.0004,120]
[336743633,1725096124376,-500.0,0.0004,120]
[336743634,1725096124428,-593.65,0.0004,120]
[336743635,1725096124480,-500.0,0.0004,120]
[336743636,1725096124533,-4114.25,0.0004,120]
[336743637,1725096124588,-636.31,0.0004,120]
[336743638,1725096124642,-11442.62,0.0004,120]
[336743639,1725096124694,-564.38,0.0004,120]
[336743640,1725096124747,-304.65069208,0.0004,120]
[336743641,1725096124802,-500.0,0.0004,120]
[336743642,1725096124854,-500.0,0.0004,120]
[336743643,1725096124907,-500.0,0.0004,120]
[336743644,1725096124958,-1161.84,0.0004,120]
[336743645,1725096125010,-588.17,0.0004,120]
[336743646,1725096125060,-1654.38,0.0004,120]
[336743647,1725096125111,-1647.2,0.0004,120]
[336743648,1725096125163,-500.0,0.0004,120]
[336743649,1725096125213,-500.0,0.0004,120]
[336743650,1725096125263,-874.76,0.0004,120]
[336743651,1725096125314,-1031.07,0.0004,120]
[336743652,1725096125363,-500.0,0.0004,120]
[336743653,1725096125413,-1806.46,0.0004,120]
[336743654,1725096125466,-1786.04,0.0004,120]
[336743655,1725096125516,-500.0,0.0004,120]
[336743656,1725096125566,-796.11,0.0004,120]
[336743657,1725096125616,-4060.92,0.0004,120]
[336743658,1725096125667,-1529.27,0.0004,120]
[336743659,1725096125720,-764.48,0.0004,120]
[336743660,1725096125771,-2246.61,0.0004,120]
[336743661,1725096125823,-2118.38,0.0004,120]
[336743662,1725096125873,-817.1,0.0004,120]
[336743663,1725096125924,-500.0,0.0004,120]
[336743664,1725096125974,-2580.32,0.0004,120]
[336743665,1725096126023,-602.83,0.0004,120]
[336743666,1725096126073,-2730.58,0.0004,120]
[336743667,1725096126122,-567.84,0.0004,120]
[336743668,1725096126172,-906.16,0.0004,120]
[336743669,1725096126221,-881.66,0.0004,120]
[336743670,1725096126269,-6580.53,0.0004,120]
[336743671,1725096126318,-500.0,0.0004,120]
[336743672,1725096126367,-776.12,0.0004,120]
[336743673,1725096126416,-3133.75,0.0004,120]
[336743674,1725096126468,-1318.72,0.0004,120]
[336743675,1725096126517,-462.29219755,0.0004,120]
[336743676,1725096126567,-3220.73,0.0004,120]
[336743677,1725096126617,-512.71,0.0004,120]
[336743678,1725096126668,-500.0,0.0004,120]
[336743679,1725096126717,-924.45,0.0004,120]
[336743680,1725096126914,-1223.28,0.0004,120]
[336743681,1725096126965,-1129.99,0.0004,120]
[336743682,1725096127014,-500.0,0.0004,120]
[336743683,1725096127063,-608.6,0.0004,120]
[336743684,1725096127112,-1166.67,0.0004,120]
[336743685,1725096127161,-500.0,0.0004,120]
[336743686,1725096127212,-18433.68,0.0004,120]
[336743687,1725096127261,-1392.73,0.0004,120]
[336743688,1725096127310,-9146.0,0.0004,120]
[336743689,1725096127358,-1402.0,0.0004,120]
[336743690,1725096127406,-1370.15,0.0004,120]
[336743691,1725096127457,-500.0,0.00040547,120]
[336743692,1725096127505,-761.33,0.00040547,120]
[336743693,1725096127554,-500.0,0.00040547,120]
[336743694,1725096127604,-500.0,0.00040547,120]
[336743695,1725096127658,-500.0,0.00040547,120]
[336743696,1725096127707,-500.0,0.00040547,120]
[336743697,1725096127755,-728.45,0.00040547,120]
[336743698,1725096127803,-500.0,0.00040547,120]
[336743699,1725096127854,-268.76675573,0.00040547,120]
[336743700,1725096127906,-602.57,0.00040547,120]
[336743701,1725096127955,-500.0,0.00040547,120]
[336743702,1725096128003,-1536.81,0.00040547,120]
[336743703,1725096128051,-718.45,0.00040547,120]
[336743704,1725096128098,-500.0,0.00040547,120]
[336743705,1725096128145,-613.86,0.00040547,120]
[336743706,1725096128192,-500.0,0.00040547,120]
[336743707,1725096128239,-737.5,0.00040547,120]
[336743708,1725096128289,-500.0,0.00040547,120]
[336743709,1725096128337,-500.0,0.00040547,120]
[336743710,1725096128385,-500.0,0.00040547,120]
[336743711,1725096128434,-500.0,0.00040547,120]
[336743712,1725096128482,-500.0,0.00040547,120]
[336743713,1725096128530,-854.52,0.00040547,120]
[336743714,1725096128579,-500.0,0.00040547,120]
[336743715,1725096128631,-500.0,0.00040547,120]
[336743716,1725096128679,-500.0,0.00040547,120]
[336743717,1725096128728,-500.0,0.00040547,120]
[336743718,1725096128779,-500.0,0.00040547,120]
[336743719,1725096128830,-500.0,0.00040547,120]
[336743720,1725096128881,-500.0,0.00040547,120]
[336743721,1725096128932,-500.0,0.00040547,120]
[336743722,1725096128982,-504.81,0.00040547,120]
[336743723,1725096129032,-500.0,0.00040547,120]
[336743724,1725096129083,-500.0,0.00040547,120]
[336743725,1725096129133,-577.66,0.00040547,120]
[336743726,1725096129182,-500.0,0.00040547,120]
[336743727,1725096129232,-537.13,0.00040547,120]
[336743728,1725096129282,-500.0,0.00040547,120]
[336743729,1725096129333,-639.49,0.00040547,120]
[336743730,1725096129382,-500.0,0.00040547,120]
[336743731,1725096129431,-500.0,0.00040547,120]
[336743732,1725096129481,-500.0,0.00040547,120]
[336743733,1725096129532,-558.16,0.00040547,120]
[336743734,1725096129584,-500.0,0.00040547,120]
[336743735,1725096129638,-500.0,0.00040547,120]
[336743736,1725096129689,-606.69,0.00040547,120]
[336743737,1725096129740,-500.0,0.00040547,120]
[336743738,1725096129790,-500.0,0.00040547,120]
[336743739,1725096129841,-500.0,0.00040547,120]
[336743740,1725096129891,-500.06,0.00040547,120]
[336743741,1725096129940,-533.19,0.00040547,120]
[336743742,1725096129989,-781.37,0.00040547,120]
[336743743,1725096130039,-500.0,0.00040547,120]
[336743744,1725096130087,-500.0,0.00040547,120]
[336743745,1725096130136,-541.93,0.00040547,120]
[336743746,1725096130187,-188.40838448,0.00040547,120]
[336743747,1725096130237,-541.84,0.00040547,120]
[336743748,1725096130287,-500.0,0.00040547,120]
[336743749,1725096130336,-500.0,0.00040547,120]
[336743750,1725096130389,-500.0,0.00040547,120]
[336743751,1725096130440,-500.0,0.00040547,120]
[336743752,1725096130490,-500.0,0.00040547,120]
[336743753,1725096130541,-600.0,0.00040547,120]
[336743754,1725096130594,-500.0,0.00040547,120]
[336743755,1725096130645,-500.0,0.00040547,120]
[336743756,1725096130696,-838.09,0.00040547,120]
[336743757,1725096130743,-500.0,0.00040547,120]
[336743758,1725096130790,-500.0,0.00040547,120]
[336743759,1725096130838,-500.0,0.00040547,120]
[336743760,1725096130886,-509.55,0.00040547,120]
[336743761,1725096130934,-458.44483706,0.00040547,120]
[336743762,1725096130983,-500.0,0.00040547,120]
[336743763,1725096131032,-500.0,0.00040547,120]
[336743764,1725096131081,-708.98,0.00040547,120]
[336743765,1725096131129,-500.0,0.00040547,120]
[336743766,1725096131178,-500.0,0.00040547,120]
[336743767,1725096131227,-500.0,0.00040547,120]
[336743768,1725096131272,-1509.98,0.00040547,120]
[336743769,1725096131318,-558.78,0.00040547,120]
[336743770,1725096131367,-500.0,0.00040547,120]
[336743771,1725096131417,-1624.06,0.00040547,120]
[336743772,1725096131470,-500.0,0.00040547,120]
[336743773,1725096131518,-500.0,0.00040547,120]
[336743774,1725096131567,-640.25,0.00040547,120]
[336743775,1725096131620,-500.0,0.00040547,120]
[336743776,1725096131670,-934.21,0.00040547,120]
[336743777,1725096131719,-969.88,0.00040547,120]
[336743778,1725096131766,-791.62,0.00040547,120]
[336743779,1725096131811,-915.31,0.00040547,120]
[336743780,1725096131856,-1688.13,0.00040547,120]
[336743781,1725096131900,-616.66,0.00040547,120]
[336743782,1725096131948,-777.63,0.00040547,120]
[336743783,1725096131994,-500.0,0.00040547,120]
[336743784,1725096132191,-1310.98,0.00040547,120]
[336743785,1725096132238,-875.1,0.00040547,120]
[336743786,1725096132286,-1032.09,0.00040547,120]
[336743787,1725096132334,-2876.73,0.00040547,120]
[336743788,1725096132381,-761.85,0.00040547,120]
[336743789,1725096132427,-1344.34,0.00040547,120]
[336743790,1725096132475,-500.0,0.00040547,120]
[336743791,1725096132523,-500.0,0.00040547,120]
[336743792,1725096132575,-4839.39,0.00040547,120]
[336743793,1725096132627,-500.0,0.00040547,120]
[336743794,1725096132676,-1399.41,0.00040547,120]
[336743795,1725096132728,-500.0,0.00040547,120]
[336743796,1725096132778,-588.48,0.00040547,120]
[336743797,1725096132827,-500.0,0.00040547,120]
[336743798,1725096132875,-500.0,0.00040547,120]
[336743799,1725096132923,-500.0,0.00040547,120]
[336743800,1725096132971,-559.89,0.00040547,120]
[336743801,1725096133017,-500.0,0.00040547,120]
[336743802,1725096133064,-500.0,0.00040547,120]
[336743803,1725096133109,-500.0,0.00040547,120]
[336743804,1725096133154,-511.74,0.00040547,120]
[336743805,1725096133198,-500.0,0.00040547,120]
[336743806,1725096133242,-500.0,0.00040547,120]
[336743807,1725096133285,-500.0,0.00040547,120]
[336743808,1725096133328,-1112.54,0.00040547,120]
[336743809,1725096133375,-500.0,0.00040547,120]
[336743810,1725096133423,-500.0,0.00040547,120]
[336743811,1725096133470,-500.0,0.00040547,120]
[336743812,1725096133518,-508.19,0.00040547,120]
[336743813,1725096133566,-2558.51,0.00040547,120]
[336743814,1725096133614,-500.0,0.00040547,120]
[336743815,1725096133663,-694.5,0.00040547,120]
[336743816,1725096133709,-500.0,0.00040547,120]
[336743817,1725096133755,-923.73,0.00040547,120]
[336743818,1725096133802,-500.0,0.00040547,120]
[336743819,1725096133851,-1446.32,0.00040547,120]
[336743820,1725096133899,-500.0,0.00040547,120]
[336743821,1725096133946,-1350.52,0.00040547,120]
[336743822,1725096133996,-500.0,0.00040547,120]
[336743823,1725096134046,-1170.8,0.00040547,120]
[336743824,1725096134095,-618.91,0.00040547,120]
[336743825,1725096134142,-500.0,0.00040547,120]
[336743826,1725096134190,-500.0,0.00040547,120]
[336743827,1725096134238,-3324.83,0.00040547,120]
[336743828,1725096134289,-1273.21,0.00040547,120]
[336743829,1725096134337,-500.0,0.00040547,120]
[336743830,1725096134388,-1058.15512884,0.00040547,120]
[336743831,1725096134439,-500.0,0.00040547,120]
[336743832,1725096134489,-1114.0,0.00040547,120]
[336743833,1725096134537,-1256.51,0.00040547,120]
[336743834,1725096134588,-1913.46,0.00040547,120]
[336743835,1725096134637,-500.0,0.00040547,120]
[336743836,1725096134684,-1221.34,0.00040547,120]
[336743837,1725096134732,-500.0,0.00040547,120]
[336743838,1725096134780,-500.0,0.00040547,120]
[336743839,1725096134827,-500.0,0.00040547,120]
[336743840,1725096134873,-500.0,0.00040547,120]
[336743841,1725096134921,-1287.93,0.00040547,120]
[336743842,1725096134970,-500.0,0.00040547,120]
[336743843,1725096135016,-500.0,0.00040547,120]
[336743844,1725096135062,-925.06,0.00040547,120]
[336743845,1725096135108,-209.52666132,0.00040547,120]
[336743846,1725096135152,-500.0,0.00040547,120]
[336743847,1725096135197,-500.0,0.00040547,120]
[336743848,1725096135243,-500.0,0.00040547,120]
[336743849,1725096135288,-500.0,0.00040547,120]
[336743850,1725096135334,-548.88,0.00040547,120]
[336743851,1725096135381,-775.46,0.00040547,120]
[336743852,1725096135426,-1018.59,0.00040547,120]
[336743853,1725096135474,-540.19,0.00040547,120]
[336743854,1725096135521,-1162.77,0.00040547,120]
[336743855,1725096135567,-500.0,0.00040547,120]
[336743856,1725096135616,-500.0,0.00040547,120]
[336743857,1725096135668,-500.0,0.00040547,120]
[336743858,1725096135715,-2066.04,0.00040547,120]
[336743859,1725096135761,-500.0,0.00040547,120]
[336743860,1725096135807,-500.0,0.00040547,120]
[336743861,1725096135854,-500.0,0.00040547,120]
[336743862,1725096135902,-500.0,0.00040547,120]
[336743863,1725096135949,-500.0,0.00040547,120]
[336743864,1725096135996,-721.89,0.00040547,120]
[336743865,1725096136043,-500.0,0.00040547,120]
[336743866,1725096136089,-503.1377871,0.00040547,120]
[336743867,1725096136134,-666.61,0.00040547,120]
[336743868,1725096136180,-1547.45,0.00040547,120]
[336743869,1725096136227,-598.25,0.00040547,120]
[336743870,1725096136274,-558.12,0.00040547,120]
[336743871,1725096136322,-643.08,0.00040547,120]
[336743872,1725096136368,-585.19,0.00040547,120]
[336743873,1725096136416,-2179.7,0.00040547,120]
[336743874,1725096136464,-777.19,0.00040547,120]
[336743875,1725096136512,-2274.45,0.00040547,120]
[336743876,1725096136560,-500.0,0.00040547,120]
[336743877,1725096136610,-635.42,0.00040547,120]
[336743878,1725096136656,-500.0,0.00040547,120]
[336743879,1725096136704,-868.12,0.00040547,120]
[336743880,1725096136752,-500.0,0.00040547,120]
[336743881,1725096136800,-500.0,0.00040547,120]
[336743882,1725096136849,-1151.6,0.00040547,120]
[336743883,1725096136899,-562.37,0.00040547,120]
[336743884,1725096136950,-1582.23,0.00040547,120]
[336743885,1725096137000,-867.17,0.00040547,120]
[336743886,1725096137051,-1256.91,0.00040547,120]
[336743887,1725096137100,-500.0,0.00040547,120]
[336743888,1725096137307,-500.0,0.00040547,120]
[336743889,1725096137355,-500.0,0.00040547,120]
[336743890,1725096137404,-500.0,0.00040547,120]
[336743891,1725096137453,-735.6,0.00040547,120]
[336743892,1725096137502,-2186.79,0.00040547,120]
[336743893,1725096137550,-680.15,0.00040547,120]
[336743894,1725096137602,-4740.51,0.00040547,120]
[336743895,1725096137648,-500.0,0.00040547,120]
[336743896,1725096137697,-601.44,0.00040547,120]
[336743897,1725096137744,-786.8,0.00040547,120]
[336743898,1725096137792,-12860.68,0.00040547,120]
[336743899,1725096137839,-834.67,0.00040547,120]
[336743900,1725096137888,-500.0,0.00040547,120]
[336743901,1725096137938,-500.0,0.00040547,120]
[336743902,1725096137984,-500.0,0.00040547,120]
[336743903,1725096138030,-360.1945197,0.00040547,120]
[336743904,1725096138077,-954.8,0.00040547,120]
[336743905,1725096138124,-961.43,0.00040547,120]
[336743906,1725096138170,-997.06,0.00040547,120]
[336743907,1725096138216,-500.0,0.00040547,120]
[336743908,1725096138261,-507.58,0.00040547,120]
[336743909,1725096138307,-500.0,0.00040547,120]
[336743910,1725096138354,-500.0,0.00040547,120]
[336743911,1725096138399,-996.39,0.00040547,120]
[336743912,1725096138445,-223.65308324,0.00040547,120]
[336743913,1725096138492,-500.0,0.00040547,120]
[336743914,1725096138539,-500.0,0.00040547,120]
[336743915,1725096138592,-615.17,0.00040547,120]
[336743916,1725096138643,-510.32,0.00040547,120]
[336743917,1725096138690,-4187.61,0.00040547,120]
[336743918,1725096138738,-941.17,0.00040547,120]
[336743919,1725096138788,-10782.5,0.00040547,120]
[336743920,1725096138836,-500.0,0.00040547,120]
[336743921,1725096138883,-515.68076457,0.00040547,120]
[336743922,1725096138929,-591.64,0.00040547,120]
[336743923,1725096138976,-500.0,0.00040547,120]
[336743924,1725096139025,-500.0,0.00040547,120]
[336743925,1725096139073,-500.0,0.00040547,120]
[336743926,1725096139122,-519.14,0.00040547,120]
[336743927,1725096139170,-675.23,0.00040547,120]
[336743928,1725096139217,-653.02,0.00040547,120]
[336743929,1725096139264,-500.0,0.00040547,120]
[336743930,1725096139312,-500.0,0.00040547,120]
[336743931,1725096139359,-500.0,0.00040547,120]
[336743932,1725096139406,-1228.8,0.00040547,120]
[336743933,1725096139455,-557.32,0.00040547,120]
[336743934,1725096139502,-1015.85,0.00040547,120]
[336743935,1725096139551,-1823.12,0.00040547,120]
[336743936,1725096139599,-2186.95,0.00040547,120]
[336743937,1725096139648,-652.33,0.00040547,120]
[336743938,1725096139697,-500.0,0.00040547,120]
[336743939,1725096139746,-702.23,0.00040547,120]
[336743940,1725096139796,-2082.61,0.00040547,120]
[336743941,1725096139844,-500.0,0.00040547,120]
[336743942,1725096139892,-500.0,0.00040547,120]
[336743943,1725096139938,-500.0,0.00040547,120]
[336743944,1725096139986,-694.0,0.00040547,120]
[336743945,1725096140034,-997.15,0.00040547,120]
[336743946,1725096140085,-604.52,0.00040547,120]
[336743947,1725096140131,-501.24,0.00040547,120]
[336743948,1725096140183,-500.0,0.00040547,120]
[336743949,1725096140230,-831.62,0.00040547,120]
[336743950,1725096140279,-835.51,0.00040547,120]
[336743951,1725096140328,-762.21,0.00040547,120]
[336743952,1725096140375,-6300.15,0.00040547,120]
[336743953,1725096140422,-887.91,0.00040547,120]
[336743954,1725096140473,-500.0,0.00040547,120]
[336743955,1725096140520,-593.65,0.00040547,120]
[336743956,1725096140567,-500.0,0.00040547,120]
[336743957,1725096140615,-4114.25,0.00040547,120]
[336743958,1725096140664,-636.31,0.00040547,120]
[336743959,1725096140711,-11442.62,0.00040547,120]
[336743960,1725096140756,-564.38,0.00040547,120]
[336743961,1725096140802,-500.0,0.00040547,120]
[336743962,1725096140849,-500.0,0.00040547,120]
[336743963,1725096140896,-500.0,0.00040547,120]
[336743964,1725096140944,-1161.84,0.00040547,120]
[336743965,1725096140990,-588.17,0.00040547,120]
[336743966,1725096141036,-1654.38,0.00040547,120]
[336743967,1725096141083,-1647.2,0.00040547,120]
[336743968,1725096141129,-500.0,0.00040547,120]
[336743969,1725096141173,-500.0,0.00040547,120]
[336743970,1725096141218,-874.76,0.00040547,120]
[336743971,1725096141261,-1031.07,0.00040547,120]
[336743972,1725096141305,-500.0,0.00040547,120]
[336743973,1725096141350,-1806.46,0.00040547,120]
[336743974,1725096141393,-1786.04,0.00040547,120]
[336743975,1725096141439,-500.0,0.00040547,120]
[336743976,1725096141484,-796.11,0.00040547,120]
[336743977,1725096141529,-4060.92,0.00040547,120]
[336743978,1725096141577,-1529.27,0.00040547,120]
[336743979,1725096141628,-764.48,0.00040547,120]
[336743980,1725096141675,-2246.61,0.00040547,120]
[336743981,1725096141723,-2118.38,0.00040547,120]
[336743982,1725096141771,-817.1,0.00040547,120]
[336743983,1725096141820,-500.0,0.00040547,120]
[336743984,1725096141868,-2580.32,0.00040547,120]
[336743985,1725096141916,-602.83,0.00040547,120]
[336743986,1725096141965,-2730.58,0.00040547,120]